bitfinex-derivatives/quotes_SOLF0:USTF0_20240824
["timestamp","ask_amount","ask_price","bid_price","bid_amount"]
[1724538296887,3.19804059,158.5,158.44,21.8]
[1724538296888,0.04494059,158.5,158.44,21.8]
[1724538297287,0.04494059,158.5,158.47,3.1536]
[1724538298185,3.19814059,158.5,158.46,3.1539]
[1724538299287,3.19814059,158.5,158.47,3.1537]
[1724538300484,0.04494059,158.5,158.44,21.8]
[1724538300690,0.04494059,158.5,158.46,21.8]
[1724538300994,0.04494059,158.5,158.49,3.1533]
[1724538301183,0.04494059,158.5,158.44,21.8]
[1724538301389,0.04494059,158.5,158.44,5.68]
[1724538301689,3.19814059,158.5,158.46,3.1537]
[1724538302584,3.19814059,158.5,158.47,3.1537]
[1724538303692,0.04494059,158.5,158.47,3.1537]
[1724538303990,0.04494059,158.5,158.48,3.1534]
[1724538306586,0.04494059,158.5,158.49,3.1533]
[1724538307395,3.1518,158.57,158.48,21.8]
[1724538307583,23.062,158.6,158.49,2.87141229]
[1724538307785,21.8,158.57,158.48,21.8]
[1724538307990,3.1522,158.55,158.46,21.8]
[1724538308186,21.8,158.55,158.47,2.87144372]
[1724538308492,21.84024394,158.53,158.49,0.04699474]
[1724538308692,21.84024394,158.53,158.49,0.04547684]
[1724538309294,1.262,158.52,158.49,0.04547684]
[1724538309797,4.4147,158.52,158.49,0.04547684]
[1724538309990,1.262,158.52,158.49,0.04547684]
[1724538310594,4.4147,158.52,158.49,0.04547684]
[1724538312299,1.262,158.52,158.49,3.19877684]
[1724538312493,1.262,158.52,158.49,0.04547684]
[1724538312692,0.04024394,158.53,158.49,0.04547684]
[1724538313497,0.04024394,158.53,158.52,3.1527]
[1724538314400,0.04024394,158.53,158.51,3.1528]
[1724538314797,0.04024394,158.53,158.49,0.04547684]
[1724538314997,0.04024394,158.53,158.5,3.1529]
[1724538315396,0.04024394,158.53,158.49,0.04547684]
[1724538315590,0.04024394,158.53,158.51,3.1529]
[1724538316193,0.04024394,158.53,158.52,3.1527]
[1724538319699,0.04024394,158.53,158.52,6.0231315]
[1724538319899,3.1505,158.63,158.52,46.4704315]
[1724538320103,3.8991,158.65,158.56,21.8]
[1724538320395,3.1507,158.62,158.58,3.1514]
[1724538320796,3.19776204,158.62,158.58,0.04622683]
[1724538321099,3.1509,158.61,158.58,0.04622683]
[1724538321398,3.1513,158.59,158.58,0.04622683]
[1724538322001,21.8,158.6,158.48,21.8]
[1724538322204,21.8,158.58,158.51,5.66]
[1724538322597,21.8,158.58,158.53,3.1524]
[1724538322797,1.256,158.57,158.53,3.1524]
[1724538322999,1.30190167,158.57,158.53,0.04149088]
[1724538323203,3.1521,158.55,158.53,0.04149088]
[1724538323405,21.8,158.55,158.53,0.04149088]
[1724538325304,3.1523,158.54,158.53,0.04149088]
[1724538327295,21.8,158.55,158.49,3.1533]
[1724538327502,21.8,158.53,158.44,21.8]
[1724538327705,21.8,158.53,158.45,2.87195288]
[1724538328006,21.8,158.53,158.46,2.87195288]
[1724538328206,0.04837128,158.51,158.48,3.1535]
[1724538328503,0.04837128,158.51,158.44,5.66]
[1724538328709,3.1532,158.5,158.46,3.1537]
[1724538329104,0.04837128,158.51,158.44,5.66]
[1724538329408,0.04837128,158.51,158.45,2.8721642]
[1724538329598,0.04837128,158.51,158.46,2.8721642]
[1724538329798,0.04837128,158.51,158.44,5.66]
[1724538330005,0.04837128,158.51,158.45,2.87238857]
[1724538330205,21.84837128,158.51,158.46,2.87238857]
[1724538330405,21.84837128,158.51,158.44,5.66]
[1724538330608,21.84837128,158.51,158.45,2.87238902]
[1724538330806,21.84837128,158.51,158.46,2.87238902]
[1724538331004,0.04837128,158.51,158.45,21.8]
[1724538331313,0.04837128,158.51,158.47,21.8]
[1724538331504,0.04837128,158.51,158.48,3.1533]
[1724538331706,0.04837128,158.51,158.45,21.8]
[1724538331905,0.04837128,158.51,158.47,21.8]
[1724538332105,0.04837128,158.51,158.48,2.87181741]
[1724538332307,0.04837128,158.51,158.49,3.1533]
[1724538332598,0.04837128,158.51,158.47,21.8]
[1724538332803,0.04837128,158.51,158.5,3.1531]
[1724538333009,0.04837128,158.51,158.5,9.13295863]
[1724538333202,2.4767,158.61,158.5,5.97985863]
[1724538333409,3.7013,158.61,158.56,3.1517]
[1724538333904,3.7013,158.61,158.54,21.8]
[1724538334105,3.7013,158.61,158.55,2.86989558]
[1724538334307,0.04437437,158.6,158.56,0.04411585]
[1724538336300,0.04437437,158.6,158.56,21.84411585]
[1724538336506,0.04437437,158.6,158.56,27.27411585]
[1724538336704,0.04437437,158.6,158.57,3.1517]
[1724538336911,0.04437437,158.6,158.56,27.27411585]
[1724538337306,0.04437437,158.6,158.57,3.1515]
[1724538338507,0.04437437,158.6,158.56,27.27411585]
[1724538338711,0.04437437,158.6,158.56,0.04411585]
[1724538341008,1.34327437,158.6,158.56,0.04411585]
[1724538341414,3.1513,158.59,158.56,0.04411585]
[1724538342814,29.79837437,158.6,158.49,27.23]
[1724538343008,29.754,158.6,158.5,2.87054931]
[1724538343212,29.754,158.6,158.49,32.89]
[1724538343417,3.1521,158.56,158.5,2.87104353]
[1724538343616,3.1521,158.56,158.49,32.89]
[1724538343809,3.1521,158.56,158.5,2.87088647]
[1724538344014,0.04141771,158.54,158.49,32.89]
[1724538344217,0.04141771,158.54,158.5,2.87117878]
[1724538344513,0.04141771,158.54,158.49,32.89]
[1724538344709,0.04141771,158.54,158.51,3.1527]
[1724538345115,0.04141771,158.54,158.49,32.89]
[1724538345317,0.04141771,158.54,158.52,3.1527]
[1724538345918,0.04141771,158.54,158.3,39.1164686]
[1724538345919,0.04141771,158.54,158.39,17.65710031]
[1724538346116,0.04095142,158.5,158.43,30.10241355]
[1724538346317,0.04095142,158.5,158.48,3.1533]
[1724538346517,0.04095142,158.5,158.46,27.23]
[1724538346819,0.04272116,158.5,158.47,2.87183807]
[1724538347017,0.04272116,158.5,158.48,3.1535]
[1724538347813,0.04272116,158.5,158.49,3.1533]
[1724538348023,0.04272116,158.5,158.49,6.02440615]
[1724538348224,0.04272116,158.5,158.49,3.1533]
[1724538348526,0.04272116,158.5,158.49,6.02469747]
[1724538349122,0.04272116,158.5,158.49,2.87139747]
[1724538349327,0.04272116,158.5,158.48,3.1535]
[1724538356328,0.04272116,158.5,158.44,5.64]
[1724538356528,0.04272116,158.5,158.45,2.87194412]
[1724538356725,0.04272116,158.5,158.46,2.87194412]
[1724538356924,0.04272116,158.5,158.47,2.87194412]
[1724538357121,0.04272116,158.5,158.47,3.1537]
[1724538358722,0.04272116,158.5,158.39,4.31214348]
[1724538358723,0.04272116,158.5,158.41,21.79]
[1724538358926,0.04783344,158.47,158.42,2.87253298]
[1724538359125,3.20163344,158.47,158.43,6.02703298]
[1724538359326,0.04783344,158.47,158.44,2.87253298]
[1724538359527,0.04783344,158.47,158.4,2.87253298]
[1724538359825,0.04783344,158.47,158.41,2.87285093]
[1724538360027,0.04783344,158.47,158.42,2.87285093]
[1724538360228,0.04783344,158.47,158.43,2.87285093]
[1724538360430,3.20163344,158.47,158.39,31.74214348]
[1724538360622,0.04783344,158.47,158.39,31.74214348]
[1724538360822,0.04783344,158.47,158.4,2.8728789]
[1724538361023,3.154,158.46,158.42,3.1545]
[1724538361732,3.154,158.46,158.43,2.87290591]
[1724538361929,3.154,158.46,158.42,3.1545]
[1724538362427,3.154,158.46,158.43,2.87290959]
[1724538362621,3.154,158.46,158.42,3.1545]
[1724538362827,3.154,158.46,158.43,6.02738355]
[1724538363031,3.154,158.46,158.43,3.1545]
[1724538363329,3.1541,158.45,158.39,24.86914348]
[1724538363529,0.04004548,158.44,158.41,3.1547]
[1724538363724,0.04004548,158.44,158.42,2.87309801]
[1724538364322,0.04004548,158.44,158.41,3.1547]
[1724538364528,0.04004548,158.44,158.42,3.1547]
[1724538364724,0.04004548,158.44,158.39,24.86914348]
[1724538364921,0.04004548,158.44,158.4,2.87343494]
[1724538365129,0.04004548,158.44,158.41,2.87343494]
[1724538365326,0.04004548,158.44,158.38,2.8738027]
[1724538365631,3.1546,158.43,158.39,6.02922841]
[1724538365833,3.1546,158.43,158.39,3.1553]
[1724538366336,3.1546,158.43,158.4,2.8738092]
[1724538366538,3.1546,158.43,158.39,6.23241494]
[1724538366833,3.1546,158.43,158.4,2.87380872]
[1724538367035,3.1546,158.43,158.39,6.23241494]
[1724538367224,3.1546,158.43,158.4,2.8738087]
[1724538367423,3.1546,158.43,158.39,6.23241494]
[1724538368030,3.1546,158.43,158.4,2.87370356]
[1724538368227,3.1546,158.43,158.39,6.23241494]
[1724538369442,3.1546,158.43,158.4,3.1551]
[1724538370143,3.1546,158.43,158.39,6.27978125]
[1724538370350,3.1546,158.43,158.39,3.1552]
[1724538370644,0.04004548,158.44,158.35,28.7335]
[1724538370851,21.79,158.45,158.38,3.1555]
[1724538370852,0.04275858,158.41,158.38,3.1555]
[1724538371549,0.04275858,158.41,158.33,21.79]
[1724538371849,21.83275858,158.41,158.35,2.87491609]
[1724538372147,1.2337,158.4,158.32,5.64]
[1724538372544,0.04565486,158.38,158.32,5.64]
[1724538372737,3.20125486,158.38,158.33,3.1564]
[1724538373143,3.20125486,158.38,158.32,5.64]
[1724538373643,3.20125486,158.38,158.33,2.87537699]
[1724538373847,0.04565486,158.38,158.34,3.1562]
[1724538374747,0.04565486,158.38,158.35,3.156]
[1724538375146,0.04565486,158.38,158.36,3.1558]
[1724538375448,0.04565486,158.38,158.33,2.87537699]
[1724538378748,0.04565486,158.38,158.36,3.1557]
[1724538379747,0.04565486,158.38,158.37,3.1557]
[1724538380544,21.79,158.5,158.37,5.64]
[1724538380744,24.96924935,158.5,158.4,21.79]
[1724538381051,24.96924935,158.5,158.43,3.1544]
[1724538381448,0.04091553,158.48,158.45,0.04791598]
[1724538382153,0.04091553,158.48,158.47,3.1537]
[1724538382545,0.04091553,158.48,158.45,0.04791598]
[1724538383149,0.04091553,158.48,158.46,3.1539]
[1724538383456,0.04091553,158.48,158.45,0.04791598]
[1724538384347,0.04091553,158.48,158.47,3.1537]
[1724538385055,1.2206,158.54,158.52,3.1525]
[1724538385356,21.79,158.6,158.51,21.79]
[1724538385553,3.1513,158.59,158.53,3.1523]
[1724538385945,3.1511,158.6,158.51,25.02042206]
[1724538386150,0.04609003,158.58,158.55,3.152]
[1724538387448,0.04609003,158.58,158.54,0.04494357]
[1724538388160,0.04609003,158.58,158.56,3.1517]
[1724538390159,0.04609003,158.58,158.54,3.19724357]
[1724538391157,3.19759003,158.58,158.54,0.04494357]
[1724538391351,0.04609003,158.58,158.54,0.04494357]
[1724538392262,3.1517,158.57,158.54,0.04494357]
[1724538393057,24.9417,158.57,158.54,0.04494357]
[1724538393255,21.79,158.57,158.54,0.04494357]
[1724538393455,1.2841,158.56,158.54,0.04494357]
[1724538393861,4.4361,158.56,158.54,0.04494357]
[1724538394058,1.2841,158.56,158.54,0.04494357]
[1724538394462,21.79,158.55,158.49,3.1531]
[1724538394663,21.79,158.55,158.47,5.62]
[1724538395056,24.9421,158.55,158.5,3.153]
[1724538395359,1.2841,158.56,158.47,30.50786365]
[1724538395559,0.04750954,158.53,158.52,3.1527]
[1724538399663,0.04750954,158.53,158.5,0.04267769]
[1724538400959,3.1529,158.51,158.5,0.04267769]
[1724538401369,21.79,158.52,158.43,5.62]
[1724538401559,21.79,158.52,158.46,3.1538]
[1724538401861,24.91398927,158.55,158.47,3.21605678]
[1724538401862,21.79,158.55,158.47,3.21605678]
[1724538402065,21.79,158.55,158.46,21.79]
[1724538402459,0.04618041,158.52,158.46,21.79]
[1724538402666,0.04618041,158.52,158.47,3.10286419]
[1724538403269,0.04618041,158.52,158.49,3.1531]
[1724538406065,0.04618041,158.52,158.47,24.89286419]
[1724538407367,0.04618041,158.52,158.51,3.1529]
[1724538407564,0.04618041,158.52,158.51,24.9429]
[1724538408059,0.04618041,158.52,158.51,28.02092861]
[1724538408256,3.1513,158.59,158.54,3.1521]
[1724538408460,3.1513,158.59,158.53,21.79]
[1724538409263,0.04698269,158.58,158.54,0.04024852]
[1724538409464,0.04698269,158.58,158.55,3.152]
[1724538410169,3.19848269,158.58,158.54,3.19244852]
[1724538410968,21.79,158.57,158.49,5.6]
[1724538411761,3.1521,158.55,158.51,3.1527]
[1724538412063,0.04726797,158.55,158.49,5.6]
[1724538412470,0.04726797,158.55,158.51,3.1528]
[1724538413171,0.04726797,158.55,158.52,3.1526]
[1724538415067,3.19946797,158.55,158.51,3.1529]
[1724538415264,0.04726797,158.55,158.49,21.79]
[1724538415471,0.04726797,158.55,158.48,5.6]
[1724538415865,3.1528,158.52,158.48,3.1535]
[1724538416059,0.04736059,158.52,158.47,3.17833284]
[1724538416375,3.1532,158.5,158.47,3.17833284]
[1724538416870,3.1532,158.5,158.46,3.1538]
[1724538417963,3.153,158.51,158.47,3.1537]
[1724538418570,1.36036059,158.52,158.44,8.74270979]
[1724538418768,1.36036059,158.52,158.47,21.79]
[1724538420170,1.36036059,158.52,158.49,3.1533]
[1724538420370,1.36036059,158.52,158.47,21.79]
[1724538420770,1.36036059,158.52,158.45,21.79]
[1724538420965,1.36036059,158.52,158.44,5.6]
[1724538421366,3.1535,158.49,158.45,3.1541]
[1724538421578,0.04177873,158.49,158.42,5.6]
[1724538421770,0.04177873,158.49,158.41,21.79]
[1724538421771,0.04382411,158.47,158.41,21.79]
[1724538421970,0.04382411,158.47,158.44,3.1543]
[1724538422176,0.04382411,158.47,158.39,47.01]
[1724538422372,21.83382411,158.47,158.38,5.6]
[1724538422571,0.04711948,158.44,158.4,3.1549]
[1724538422979,0.04711948,158.44,158.38,5.6]
[1724538423280,0.04711948,158.44,158.37,23.0743]
[1724538423281,0.04711948,158.44,158.37,6.8843]
[1724538423872,3.1545,158.43,158.38,3.1554]
[1724538424087,0.04711948,158.44,158.38,21.79]
[1724538424380,3.20151948,158.44,158.39,3.1553]
[1724538425478,0.04711948,158.44,158.4,3.1551]
[1724538426076,3.20151948,158.44,158.39,3.1552]
[1724538427579,3.1545,158.43,158.39,3.1552]
[1724538427780,4.3845,158.43,158.39,3.1552]
[1724538428079,1.23,158.43,158.39,3.1552]
[1724538431180,1.23,158.43,158.37,3.1555]
[1724538431883,1.23,158.43,158.36,3.21742811]
[1724538432290,1.23,158.43,158.37,3.1557]
[1724538432481,0.04324861,158.42,158.37,3.1557]
[1724538433179,0.04324861,158.42,158.36,3.1558]
[1724538433383,21.79,158.41,158.34,3.15791008]
[1724538433684,3.1555,158.38,158.31,5.6]
[1724538434485,3.1557,158.37,158.3,3.1146813]
[1724538434686,0.04666904,158.35,158.3,5.6]
[1724538434884,0.04666904,158.35,158.31,3.1907261]
[1724538435585,0.04666904,158.35,158.33,3.1564]
[1724538439185,0.04666904,158.35,158.32,3.1567]
[1724538441997,0.04666904,158.35,158.31,21.79]
[1724538442488,0.04666904,158.35,158.33,3.1564]
[1724538443089,0.04666904,158.35,158.34,3.1563]
[1724538443391,0.04666904,158.35,158.31,21.79]
[1724538444396,0.04666904,158.35,158.33,3.1565]
[1724538445295,0.04666904,158.35,158.34,3.1563]
[1724538445885,4.4675,158.41,158.36,3.1968525]
[1724538446089,1.3125,158.41,158.33,21.79]
[1724538446892,0.04638339,158.39,158.35,0.0470965]
[1724538447199,0.04638339,158.39,158.36,3.1558]
[1724538448300,0.04638339,158.39,158.35,3.2031965]
[1724538448896,0.04638339,158.39,158.35,0.0470965]
[1724538449096,21.83638339,158.39,158.35,0.0470965]
[1724538450302,3.1559,158.37,158.35,0.0470965]
[1724538451104,3.1559,158.36,158.35,0.0470965]
[1724538452002,0.04638339,158.39,158.35,0.0470965]
[1724538452392,3.1557,158.37,158.35,0.0470965]
[1724538455104,0.04638339,158.39,158.35,3.2030965]
[1724538456210,3.1556,158.38,158.35,0.0470965]
[1724538457612,0.04638339,158.39,158.35,0.0470965]
[1724538458113,0.04638339,158.39,158.36,21.79]
[1724538458320,0.04638339,158.39,158.38,3.1555]
[1724538458806,3.1541,158.46,158.38,21.79]
[1724538459008,1.2537,158.47,158.41,21.79]
[1724538459217,2.5759,158.48,158.41,21.79]
[1724538459413,3.1539,158.46,158.41,21.79]
[1724538459618,3.1539,158.46,158.39,21.79]
[1724538460020,0.04158864,158.44,158.41,0.04579569]
[1724538460518,0.04158864,158.44,158.41,3.20049569]
[1724538462318,0.04158864,158.44,158.41,0.04579569]
[1724538464215,3.1546,158.43,158.41,0.04579569]
[1724538464613,0.04158864,158.44,158.41,0.04579569]
[1724538465019,3.19598864,158.44,158.41,0.04579569]
[1724538465722,3.19598864,158.44,158.41,3.20069569]
[1724538466425,0.04158864,158.44,158.41,3.20069569]
[1724538467623,0.04158864,158.44,158.41,0.04579569]
[1724538468231,0.04158864,158.44,158.43,3.1545]
[1724538468921,21.79,158.54,158.43,21.79]
[1724538469231,23.0151,158.54,158.43,21.79]
[1724538469530,21.79,158.52,158.43,27.37]
[1724538469827,0.04492386,158.49,158.46,0.04406965]
[1724538471030,3.19842386,158.49,158.46,0.04406965]
[1724538471734,0.04492386,158.49,158.46,3.19786965]
[1724538473232,3.19822386,158.49,158.46,0.04406965]
[1724538475548,21.83492386,158.49,158.46,0.04406965]
[1724538475732,1.3074,158.48,158.46,0.04406965]
[1724538475934,3.1537,158.47,158.46,0.04406965]
[1724538478342,3.1542,158.45,158.41,3.1549]
[1724538479041,1.3074,158.48,158.42,3.1547]
[1724538479234,0.04041807,158.47,158.43,0.04834808]
[1724538479740,3.1539,158.46,158.43,0.04834808]
[1724538481342,3.1541,158.45,158.43,0.04834808]
[1724538481636,21.83041807,158.47,158.43,0.04834808]
[1724538481837,3.1543,158.44,158.43,0.04834808]
[1724538484338,1.2825,158.46,158.43,0.04834808]
[1724538484943,1.28611807,158.47,158.43,0.04834808]
[1724538485645,3.1542,158.45,158.43,0.04834808]
[1724538486944,3.1539,158.46,158.43,0.04834808]
[1724538487442,3.1539,158.46,158.43,3.20284808]
[1724538488033,3.19411807,158.47,158.43,3.20284808]
[1724538489040,3.1539,158.46,158.43,3.20284808]
[1724538490339,0.04041807,158.47,158.45,3.1541]
[1724538491746,0.04041807,158.47,158.43,21.83834808]
[1724538491944,0.04041807,158.47,158.45,21.79]
[1724538492250,0.04041807,158.47,158.46,3.1539]
[1724538492749,3.1527,158.53,158.45,24.92901426]
[1724538493839,0.04305484,158.51,158.48,3.1535]
[1724538494444,3.19595484,158.51,158.47,3.19692725]
[1724538494751,0.04305484,158.51,158.47,0.04332725]
[1724538494949,0.04305484,158.51,158.47,21.83332725]
[1724538495252,0.04305484,158.51,158.5,3.1531]
[1724538497349,0.04305484,158.51,158.48,3.1534]
[1724538497553,0.04305484,158.51,158.47,0.04332725]
[1724538499455,0.04305484,158.51,158.49,3.1532]
[1724538502954,0.04305484,158.51,158.5,3.1531]
[1724538504048,3.1518,158.57,158.5,21.79]
[1724538504359,3.1518,158.57,158.52,21.79]
[1724538505160,0.04103277,158.56,158.53,6.28303849]
[1724538505758,0.04103277,158.56,158.53,3.19310159]
[1724538506267,3.19303277,158.56,158.53,0.04070159]
[1724538506468,0.04103277,158.56,158.53,0.04070159]
[1724538506962,21.83103277,158.56,158.53,0.04070159]
[1724538507265,1.3059,158.55,158.53,0.04070159]
[1724538507466,3.1523,158.54,158.53,0.04070159]
[1724538516172,3.1527,158.52,158.49,3.1533]
[1724538516370,2.5429,158.55,158.46,21.79]
[1724538516575,21.79,158.54,158.46,24.9438]
[1724538516782,21.79,158.54,158.46,21.79]
[1724538517175,0.04846138,158.52,158.48,0.0435844]
[1724538517675,0.04846138,158.52,158.48,21.8335844]
[1724538517981,0.04846138,158.52,158.5,21.79]
[1724538518372,0.04846138,158.52,158.51,3.1529]
[1724538518579,3.1518,158.57,158.5,21.79]
[1724538518781,3.1518,158.57,158.52,21.79]
[1724538518986,1.3288,158.59,158.52,21.79]
[1724538519278,3.1519,158.56,158.52,21.79]
[1724538519579,3.19745003,158.56,158.52,21.83498507]
[1724538520281,3.19745003,158.56,158.52,24.98758507]
[1724538520681,0.04555003,158.56,158.53,3.15334561]
[1724538520882,43.58,158.56,158.38,18.94]
[1724538521082,3.1563,158.34,158.27,1.2212]
[1724538521277,21.79,158.41,158.27,1.2212]
[1724538521278,21.79,158.41,158.28,21.79]
[1724538521475,21.79,158.48,158.27,1.2212]
[1724538521476,21.79,158.38,158.27,1.2212]
[1724538521673,21.79,158.36,158.27,1.2212]
[1724538521885,21.79,158.36,158.3,0.04174478]
[1724538521886,0.04386174,158.33,158.3,0.04174478]
[1724538522286,3.1569,158.31,158.3,0.04174478]
[1724538522485,0.04386174,158.33,158.3,0.04174478]
[1724538523183,3.1567,158.32,158.3,0.04174478]
[1724538523574,0.04386174,158.33,158.3,0.04174478]
[1724538531891,3.1567,158.32,158.3,0.04174478]
[1724538532087,0.04386174,158.33,158.3,0.04174478]
[1724538532286,21.79,158.32,158.3,0.04174478]
[1724538533088,0.04386174,158.33,158.3,0.04174478]
[1724538533386,3.1569,158.31,158.3,0.04174478]
[1724538535678,0.04386174,158.33,158.3,0.04174478]
[1724538536786,3.20056174,158.33,158.3,0.04174478]
[1724538539392,0.04386174,158.33,158.3,0.04174478]
[1724538541783,0.04386174,158.33,158.31,3.19400107]
[1724538541995,0.04386174,158.33,158.3,3.19874478]
[1724538544883,0.04386174,158.33,158.3,0.04174478]
[1724538545084,0.04386174,158.33,158.3,1.34044478]
[1724538545289,32.79,158.43,158.31,27.29]
[1724538545501,3.1557,158.37,158.32,6.29994365]
[1724538546195,0.04738182,158.36,158.33,0.04424612]
[1724538547884,0.04738182,158.36,158.33,3.20074612]
[1724538548101,0.04738182,158.36,158.33,0.04424612]
[1724538549585,0.04738182,158.36,158.33,3.20074612]
[1724538552496,0.04738182,158.36,158.34,3.1563]
[1724538556195,0.04738182,158.36,158.35,3.1561]
[1724538557503,3.1552,158.4,158.36,3.1558]
[1724538557708,23.0202,158.45,158.36,21.81]
[1724538557709,3.1549,158.42,158.36,21.81]
[1724538558202,1.2102,158.45,158.38,3.1553]
[1724538558596,3.1548,158.42,158.4,0.0477962]
[1724538563200,3.1549,158.41,158.4,0.0477962]
[1724538563393,21.81,158.42,158.32,24.95324365]
[1724538563596,21.81,158.42,158.32,27.29]
[1724538563801,3.1555,158.39,158.34,3.1561]
[1724538564005,21.81,158.4,158.33,3.09448683]
[1724538564199,21.81,158.4,158.31,8.0735]
[1724538564400,3.1964977,158.37,158.34,0.04854227]
[1724538567101,0.0405977,158.37,158.34,3.20484227]
[1724538569006,3.1963977,158.37,158.34,0.04854227]
[1724538570908,3.1561,158.35,158.34,0.04854227]
[1724538574415,3.1559,158.36,158.34,0.04854227]
[1724538578015,0.0405977,158.37,158.34,0.04854227]
[1724538578517,0.0405977,158.37,158.35,3.1559]
[1724538579315,0.0405977,158.37,158.34,0.04854227]
[1724538580216,0.0405977,158.37,158.34,3.20464227]
[1724538582911,3.1963977,158.37,158.34,3.20464227]
[1724538583108,0.0405977,158.37,158.34,0.04854227]
[1724538583712,3.156,158.36,158.34,0.04854227]
[1724538584322,3.1963977,158.37,158.34,0.04854227]
[1724538584818,0.0405977,158.37,158.34,3.20464227]
[1724538585009,0.0405977,158.37,158.34,0.04854227]
[1724538586423,0.0405977,158.37,158.35,3.1559]
[1724538588326,0.0405977,158.37,158.36,3.1559]
[1724538595831,3.155,158.41,158.38,3.1555]
[1724538596728,3.19748089,158.41,158.38,3.2017532]
[1724538598430,0.04248089,158.41,158.38,3.2017532]
[1724538598640,0.04248089,158.41,158.38,11.9317532]
[1724538599835,0.04248089,158.41,158.39,3.1551]
[1724538600033,0.04248089,158.41,158.39,3.23435526]
[1724538600227,0.04248089,158.41,158.4,8.73]
[1724538600423,3.1537,158.47,158.43,3.1544]
[1724538600629,8.73,158.46,158.39,11.83446454]
[1724538600823,8.73,158.46,158.4,2.87444365]
[1724538601030,8.73,158.44,158.39,3.17420297]
[1724538601224,34.92,158.48,158.34,1.2675]
[1724538601225,8.73,158.43,158.34,1.2675]
[1724538601426,0.04266404,158.4,158.38,3.1554]
[1724538603332,0.04266404,158.4,158.37,3.19548309]
[1724538603628,0.04266404,158.4,158.38,2.87503552]
[1724538603825,0.04266404,158.4,158.37,8.76988309]
[1724538604131,0.04266404,158.4,158.38,6.0304068]
[1724538604331,0.04266404,158.4,158.39,2.8750068]
[1724538604528,0.04266404,158.4,158.38,3.1554]
[1724538605137,0.04266404,158.4,158.39,2.87503309]
[1724538605435,0.04266404,158.4,158.38,3.1554]
[1724538607133,0.04266404,158.4,158.39,2.87501022]
[1724538607436,3.14977241,158.4,158.37,0.03988309]
[1724538607636,0.04266404,158.4,158.37,0.03988309]
[1724538609228,3.1555,158.38,158.37,0.03988309]
[1724538610133,3.1553,158.39,158.37,0.03988309]
[1724538610335,0.04266404,158.4,158.37,0.03988309]
[1724538610931,3.19776404,158.4,158.37,0.03988309]
[1724538611132,0.04266404,158.4,158.39,8.73]
[1724538611439,0.04266404,158.4,158.39,11.9433098]
[1724538611634,0.04266404,158.4,158.39,8.73]
[1724538611837,11.902335,158.4,158.37,0.03988309]
[1724538612629,8.77266404,158.4,158.37,0.03988309]
[1724538613228,0.04266404,158.4,158.37,0.03988309]
[1724538613530,3.19776404,158.4,158.37,0.03988309]
[1724538615431,0.04266404,158.4,158.37,0.03988309]
[1724538615737,0.04266404,158.4,158.38,8.73]
[1724538616035,0.04266404,158.4,158.37,0.03988309]
[1724538616241,0.04266404,158.4,158.39,11.8853]
[1724538617138,0.04266404,158.4,158.39,14.97505375]
[1724538617439,0.04266404,158.4,158.39,3.08975375]
[1724538617648,0.04266404,158.4,158.37,0.03988309]
[1724538618730,0.04266404,158.4,158.38,3.1554]
[1724538619136,0.04266404,158.4,158.38,11.8854]
[1724538619344,0.04266404,158.4,158.39,2.87173835]
[1724538620232,0.04266404,158.4,158.37,0.03988309]
[1724538620448,0.04266404,158.4,158.38,2.87169195]
[1724538620638,0.04266404,158.4,158.39,2.87169195]
[1724538621038,0.04266404,158.4,158.37,3.19548309]
[1724538621347,0.04266404,158.4,158.38,2.87179721]
[1724538621646,0.04266404,158.4,158.39,2.87179721]
[1724538622036,0.04266404,158.4,158.37,3.19548309]
[1724538622842,0.04266404,158.4,158.38,2.8717979]
[1724538623042,0.04266404,158.4,158.37,3.19548309]
[1724538623348,0.04266404,158.4,158.38,2.87179091]
[1724538623541,0.04266404,158.4,158.37,3.19548309]
[1724538623838,0.04266404,158.4,158.38,2.87183792]
[1724538624040,0.04266404,158.4,158.37,3.19548309]
[1724538624544,0.04266404,158.4,158.38,2.87184537]
[1724538624740,0.04266404,158.4,158.37,0.03988309]
[1724538626235,0.04266404,158.4,158.39,3.1553]
[1724538626441,0.04266404,158.4,158.39,6.02659762]